[Event "Masters Tournament (MTO)"]
[Site "Biel, Switzerland"]
[Date "2026.07.23"]
[Round "10.32"]
[White "Carey, Michael"]
[Black "Gireada, Daniel"]
[Result "1-0"]
[TimeControl "100+30+30sec/move"]
[WhiteTitle "-"]
[BlackTitle "-"]
[WhiteFideId "30923760"]
[BlackFideId "1206451"]
[WhiteElo "1946"]
[BlackElo "2255"]

1. e4 {[%clk 01:40:54]} {[%emt 00:00:05]} c6 {[%clk 01:40:56]} {[%emt
00:00:06]} 2. d4 {[%clk 01:41:17]} {[%emt 00:00:07]} d5 {[%clk 01:41:21]}
{[%emt 00:00:05]} 3. exd5 {[%clk 01:41:31]} {[%emt 00:00:15]} cxd5 {[%clk
01:41:43]} {[%emt 00:00:09]} 4. Bd3 {[%clk 01:41:41]} {[%emt 00:00:19]} Nf6
{[%clk 01:42:02]} {[%emt 00:00:11]} 5. c3 {[%clk 01:41:35]} {[%emt 00:00:36]}
Nc6 {[%clk 01:42:25]} {[%emt 00:00:08]} 6. Bf4 {[%clk 01:41:44]} {[%emt
00:00:21]} Bg4 {[%clk 01:42:29]} {[%emt 00:00:26]} 7. Qb3 {[%clk 01:41:49]}
{[%emt 00:00:24]} Qd7 {[%clk 01:42:22]} {[%emt 00:00:39]} 8. Nd2 {[%clk
01:41:47]} {[%emt 00:00:30]} e6 {[%clk 01:42:23]} {[%emt 00:00:30]} 9. Ngf3
{[%clk 01:42:04]} {[%emt 00:00:12]} Bd6 {[%clk 01:42:26]} {[%emt 00:00:28]} 10.
Bxd6 {[%clk 01:41:41]} {[%emt 00:00:53]} Qxd6 {[%clk 01:42:48]} {[%emt
00:00:08]} 11. O-O {[%clk 01:41:29]} {[%emt 00:00:41]} O-O {[%clk 01:43:03]}
{[%emt 00:00:15]} 12. Rae1 {[%clk 01:39:23]} {[%emt 00:02:36]} Qc7 {[%clk
01:41:09]} {[%emt 00:02:24]} 13. Ne5 {[%clk 01:30:16]} {[%emt 00:09:37]} Bh5
{[%clk 01:30:05]} {[%emt 00:11:35]} 14. f4 {[%clk 01:26:33]} {[%emt 00:04:12]}
Bg6 {[%clk 01:24:41]} {[%emt 00:05:54]} 15. Bxg6 {[%clk 01:25:05]} {[%emt
00:01:58]} hxg6 {[%clk 01:25:00]} {[%emt 00:00:11]} 16. Re3 {[%clk 01:21:07]}
{[%emt 00:04:27]} a6 {[%clk 01:09:04]} {[%emt 00:16:28]} 17. Qd1 {[%clk
01:19:03]} {[%emt 00:02:33]} Qb6 {[%clk 01:02:08]} {[%emt 00:07:26]} 18. Rh3
{[%clk 01:07:09]} {[%emt 00:12:22]} Qxb2 {[%clk 00:59:34]} {[%emt 00:03:07]} 19.
Qe1 {[%clk 01:01:23]} {[%emt 00:06:15]} Rfc8 {[%clk 00:52:50]} {[%emt
00:07:15]} 20. Nxg6 {[%clk 00:50:40]} {[%emt 00:11:12]} Nh7 {[%clk 00:53:02]}
{[%emt 00:00:18]} 21. Qh4 {[%clk 00:44:25]} {[%emt 00:06:45]} fxg6 {[%clk
00:53:25]} {[%emt 00:00:07]} 22. Qxh7+ {[%clk 00:44:41]} {[%emt 00:00:14]} Kf7
{[%clk 00:53:48]} {[%emt 00:00:08]} 23. Nf3 {[%clk 00:43:13]} {[%emt 00:01:58]}
Rh8 {[%clk 00:50:56]} {[%emt 00:03:22]} 24. Ne5+ {[%clk 00:41:53]} {[%emt
00:01:49]} 1-0

[Event "Masters Tournament (MTO)"]
[Site "Biel, Switzerland"]
[Date "2026.07.23"]
[Round "10.33"]
[White "Lumsdon, Andrew"]
[Black "Scherler, Julius"]
[Result "0-1"]
[TimeControl "100+30+30sec/move"]
[WhiteTitle "-"]
[BlackTitle "-"]
[WhiteFideId "1308840"]
[BlackFideId "1337947"]
[WhiteElo "2033"]
[BlackElo "1941"]

1. e4 {[%clk 01:40:55]} {[%emt 00:00:03]} c6 {[%clk 01:40:47]} {[%emt
00:00:15]} 2. f4 {[%clk 01:41:09]} {[%emt 00:00:10]} d5 {[%clk 01:41:11]}
{[%emt 00:00:12]} 3. e5 {[%clk 01:41:35]} {[%emt 00:00:03]} Bf5 {[%clk
01:41:18]} {[%emt 00:00:23]} 4. d3 {[%clk 01:41:59]} {[%emt 00:00:07]} e6
{[%clk 01:41:42]} {[%emt 00:00:06]} 5. Nf3 {[%clk 01:42:26]} {[%emt 00:00:03]}
c5 {[%clk 01:42:04]} {[%emt 00:00:07]} 6. Be2 {[%clk 01:42:51]} {[%emt
00:00:05]} Nc6 {[%clk 01:42:26]} {[%emt 00:00:09]} 7. c3 {[%clk 01:43:15]}
{[%emt 00:00:05]} Be7 {[%clk 01:42:12]} {[%emt 00:00:44]} 8. O-O {[%clk
01:41:09]} {[%emt 00:02:35]} h5 {[%clk 01:41:18]} {[%emt 00:01:25]} 9. h3
{[%clk 01:41:09]} {[%emt 00:00:29]} Nh6 {[%clk 01:38:54]} {[%emt 00:02:53]} 10.
Na3 {[%clk 01:41:24]} {[%emt 00:00:16]} Qb6 {[%clk 01:38:29]} {[%emt 00:00:55]}
11. Kh2 {[%clk 01:41:22]} {[%emt 00:00:32]} O-O-O {[%clk 01:14:09]} {[%emt
00:24:51]} 12. Nc2 {[%clk 01:40:20]} {[%emt 00:01:31]} f6 {[%clk 01:02:14]}
{[%emt 00:12:26]} 13. d4 {[%clk 01:36:37]} {[%emt 00:04:11]} Kb8 {[%clk
00:55:20]} {[%emt 00:07:26]} 14. a3 {[%clk 01:34:23]} {[%emt 00:02:44]} Bxc2
{[%clk 00:51:44]} {[%emt 00:04:05]} 15. Qxc2 {[%clk 01:31:10]} {[%emt
00:03:43]} cxd4 {[%clk 00:45:17]} {[%emt 00:06:57]} 16. cxd4 {[%clk 01:30:41]}
{[%emt 00:00:59]} Nxd4 {[%clk 00:39:18]} {[%emt 00:06:29]} 17. Nxd4 {[%clk
01:30:45]} {[%emt 00:00:27]} Qxd4 {[%clk 00:39:43]} {[%emt 00:00:05]} 18. Bxh5
{[%clk 01:30:53]} {[%emt 00:00:22]} fxe5 {[%clk 00:35:29]} {[%emt 00:04:44]} 19.
fxe5 {[%clk 01:30:58]} {[%emt 00:00:24]} Rdf8 {[%clk 00:32:58]} {[%emt
00:03:01]} 20. Rxf8+ {[%clk 01:20:45]} {[%emt 00:10:44]} Rxf8 {[%clk 00:31:49]}
{[%emt 00:01:39]} 21. Qc3 {[%clk 01:15:13]} {[%emt 00:06:01]} Qxc3 {[%clk
00:23:27]} {[%emt 00:08:52]} 22. bxc3 {[%clk 01:15:41]} {[%emt 00:00:02]} Rf1
{[%clk 00:23:21]} {[%emt 00:00:35]} 23. Bxh6 {[%clk 01:14:23]} {[%emt
00:01:50]} Rxa1 {[%clk 00:23:45]} 24. Bxg7 {[%clk 01:14:39]} {[%emt 00:00:19]}
Kc7 {[%clk 00:22:50]} {[%emt 00:01:26]} 25. Bf6 {[%clk 01:13:48]} {[%emt
00:01:20]} Kd7 {[%clk 00:22:47]} {[%emt 00:00:33]} 26. g4 {[%clk 01:13:52]}
{[%emt 00:00:26]} Rxa3 {[%clk 00:19:08]} {[%emt 00:04:09]} 27. g5 {[%clk
01:10:23]} {[%emt 00:03:59]} Rxc3 {[%clk 00:19:24]} {[%emt 00:00:15]} 28. g6
{[%clk 01:10:35]} {[%emt 00:00:17]} Bf8 {[%clk 00:07:23]} {[%emt 00:12:31]} 29.
h4 {[%clk 01:10:05]} {[%emt 00:01:00]} a5 {[%clk 00:05:12]} {[%emt 00:02:42]}
30. Bd1 {[%clk 01:06:53]} {[%emt 00:03:41]} b5 {[%clk 00:04:21]} {[%emt
00:01:21]} 31. h5 {[%clk 01:04:51]} {[%emt 00:02:32]} a4 {[%clk 00:02:00]}
{[%emt 00:02:52]} 32. g7 {[%clk 01:03:08]} {[%emt 00:02:12]} Bxg7 {[%clk
00:02:28]} {[%emt 00:00:03]} 33. Bxg7 {[%clk 01:03:25]} {[%emt 00:00:13]} a3
{[%clk 00:02:50]} {[%emt 00:00:08]} 34. h6 {[%clk 00:53:03]} {[%emt 00:10:51]}
a2 {[%clk 00:03:11]} {[%emt 00:00:09]} 35. h7 {[%clk 00:51:58]} {[%emt
00:01:35]} a1=Q {[%clk 00:02:16]} {[%emt 00:01:25]} 36. h8=Q {[%clk 00:52:17]}
{[%emt 00:00:11]} Qxd1 {[%clk 00:02:36]} {[%emt 00:00:11]} 37. Qh6 {[%clk
00:48:08]} {[%emt 00:04:37]} Qc2+ {[%clk 00:02:42]} {[%emt 00:00:25]} 38. Kh1
{[%clk 00:47:55]} {[%emt 00:00:43]} Qb1+ {[%clk 00:03:04]} {[%emt 00:00:07]} 39.
Kg2 {[%clk 00:47:58]} {[%emt 00:00:28]} Qb2+ {[%clk 00:03:30]} {[%emt
00:00:05]} 0-1

[Event "Masters Tournament (MTO)"]
[Site "Biel, Switzerland"]
[Date "2026.07.23"]
[Round "10.34"]
[White "Oestmann, Lukas"]
[Black "Ruchat, Blaise"]
[Result "1-0"]
[TimeControl "100+30+30sec/move"]
[WhiteTitle "-"]
[BlackTitle "-"]
[WhiteFideId "1326457"]
[BlackFideId "1328921"]
[WhiteElo "1998"]
[BlackElo "1912"]

1. e4 {[%clk 01:40:56]} {[%emt 00:00:03]} e5 {[%clk 01:40:40]} {[%emt
00:00:22]} 2. Nf3 {[%clk 01:41:17]} {[%emt 00:00:07]} Nc6 {[%clk 01:41:02]}
{[%emt 00:00:09]} 3. Bb5 {[%clk 01:41:41]} {[%emt 00:00:05]} a6 {[%clk
01:41:23]} {[%emt 00:00:09]} 4. Ba4 {[%clk 01:42:07]} {[%emt 00:00:04]} Nf6
{[%clk 01:41:49]} {[%emt 00:00:03]} 5. O-O {[%clk 01:42:34]} {[%emt 00:00:04]}
Be7 {[%clk 01:41:49]} {[%emt 00:00:29]} 6. Re1 {[%clk 01:42:52]} {[%emt
00:00:12]} b5 {[%clk 01:42:10]} {[%emt 00:00:09]} 7. Bb3 {[%clk 01:43:18]}
{[%emt 00:00:05]} d6 {[%clk 01:42:20]} {[%emt 00:00:20]} 8. c3 {[%clk
01:43:38]} {[%emt 00:00:11]} O-O {[%clk 01:42:43]} {[%emt 00:00:07]} 9. h3
{[%clk 01:44:04]} {[%emt 00:00:03]} Na5 {[%clk 01:42:57]} {[%emt 00:00:16]} 10.
Bc2 {[%clk 01:44:25]} {[%emt 00:00:09]} c5 {[%clk 01:43:19]} {[%emt 00:00:08]}
11. d4 {[%clk 01:44:52]} {[%emt 00:00:03]} Nd7 {[%clk 01:43:28]} {[%emt
00:00:21]} 12. Nbd2 {[%clk 01:40:38]} {[%emt 00:04:44]} exd4 {[%clk 01:43:24]}
{[%emt 00:00:34]} 13. cxd4 {[%clk 01:40:38]} {[%emt 00:00:30]} Nc6 {[%clk
01:43:23]} {[%emt 00:00:31]} 14. d5 {[%clk 01:27:52]} {[%emt 00:13:16]} Nce5
{[%clk 01:43:35]} {[%emt 00:00:18]} 15. Nxe5 {[%clk 01:27:17]} {[%emt
00:01:05]} Nxe5 {[%clk 01:43:54]} {[%emt 00:00:11]} 16. f4 {[%clk 01:27:19]}
{[%emt 00:00:28]} Ng6 {[%clk 01:43:50]} {[%emt 00:00:34]} 17. Nf3 {[%clk
01:27:06]} {[%emt 00:00:43]} Bh4 {[%clk 01:43:39]} {[%emt 00:00:41]} 18. Rf1
{[%clk 00:59:04]} {[%emt 00:28:31]} Bg3 {[%clk 01:39:43]} {[%emt 00:04:26]} 19.
Ne1 {[%clk 00:58:16]} {[%emt 00:01:19]} Qh4 {[%clk 01:37:36]} {[%emt 00:02:37]}
20. f5 {[%clk 00:56:35]} {[%emt 00:02:11]} Ne5 {[%clk 01:29:48]} {[%emt
00:08:18]} 21. Nf3 {[%clk 00:51:43]} {[%emt 00:05:22]} Qh5 {[%clk 01:12:38]}
{[%emt 00:17:39]} 22. b3 {[%clk 00:46:29]} {[%emt 00:05:45]} Nxf3+ {[%clk
01:06:44]} {[%emt 00:06:23]} 23. Qxf3 {[%clk 00:46:46]} {[%emt 00:00:14]} Qxf3
{[%clk 01:03:55]} {[%emt 00:03:19]} 24. gxf3 {[%clk 00:44:21]} {[%emt
00:02:55]} Be5 {[%clk 00:51:35]} {[%emt 00:12:49]} 25. Rb1 {[%clk 00:44:24]}
{[%emt 00:00:28]} Bd7 {[%clk 00:47:03]} {[%emt 00:05:02]} 26. a4 {[%clk
00:41:30]} {[%emt 00:03:24]} Rab8 {[%clk 00:35:38]} {[%emt 00:11:54]} 27. Bd2
{[%clk 00:40:46]} {[%emt 00:01:13]} Rb7 {[%clk 00:33:21]} {[%emt 00:02:48]} 28.
Kg2 {[%clk 00:36:35]} {[%emt 00:04:41]} bxa4 {[%clk 00:27:41]} {[%emt
00:06:10]} 29. bxa4 {[%clk 00:36:35]} {[%emt 00:00:31]} Rfb8 {[%clk 00:27:53]}
{[%emt 00:00:17]} 30. f4 {[%clk 00:31:02]} {[%emt 00:06:02]} Bd4 {[%clk
00:25:08]} {[%emt 00:03:16]} 31. Ba5 {[%clk 00:28:02]} {[%emt 00:03:31]} Rb2
{[%clk 00:16:01]} {[%emt 00:09:37]} 32. Kf3 {[%clk 00:26:55]} {[%emt 00:01:36]}
Kf8 {[%clk 00:10:22]} {[%emt 00:06:09]} 33. Bc7 {[%clk 00:25:47]} {[%emt
00:01:38]} Rxb1 {[%clk 00:10:35]} {[%emt 00:00:18]} 34. Bxd6+ {[%clk 00:26:11]}
{[%emt 00:00:06]} Ke8 {[%clk 00:10:28]} {[%emt 00:00:36]} 35. Rxb1 {[%clk
00:21:00]} {[%emt 00:05:41]} Rxb1 {[%clk 00:10:46]} {[%emt 00:00:13]} 36. Bxb1
{[%clk 00:21:28]} {[%emt 00:00:02]} Bxa4 {[%clk 00:10:51]} {[%emt 00:00:25]} 37.
Bc7 {[%clk 00:19:55]} {[%emt 00:02:02]} Bb5 {[%clk 00:03:35]} {[%emt 00:07:46]}
38. e5 {[%clk 00:19:52]} {[%emt 00:00:32]} Kd7 {[%clk 00:01:05]} {[%emt
00:03:01]} 39. Bb8 {[%clk 00:15:22]} {[%emt 00:05:00]} Kc8 {[%clk 00:00:45]}
{[%emt 00:00:51]} 40. Bd6 {[%clk 00:13:45]} {[%emt 00:02:07]} a5 {[%clk
00:00:41]} {[%emt 00:00:34]} 41. Ba2 {[%clk 00:06:48]} {[%emt 00:07:27]} c4
{[%clk 00:16:26]} {[%emt 00:14:44]} 42. Ba3 {[%clk 00:32:46]} {[%emt 00:04:31]}
Bc3 {[%clk 00:08:23]} {[%emt 00:08:35]} 43. e6 {[%clk 00:30:52]} {[%emt
00:02:24]} fxe6 {[%clk 00:07:24]} {[%emt 00:01:29]} 44. fxe6 {[%clk 00:31:14]}
{[%emt 00:00:08]} Bb4 {[%clk 00:06:22]} {[%emt 00:01:32]} 45. Bc1 {[%clk
00:31:13]} {[%emt 00:00:30]} Kc7 {[%clk 00:03:31]} {[%emt 00:03:22]} 46. f5
{[%clk 00:31:00]} {[%emt 00:00:42]} Bd6 {[%clk 00:03:06]} {[%emt 00:00:56]} 47.
Ke4 {[%clk 00:30:20]} {[%emt 00:01:09]} Be7 {[%clk 00:01:54]} {[%emt 00:01:42]}
48. Kd4 {[%clk 00:27:41]} {[%emt 00:03:08]} Bf6+ {[%clk 00:01:17]} {[%emt
00:01:08]} 49. Kc5 {[%clk 00:28:00]} {[%emt 00:00:11]} Ba6 {[%clk 00:00:53]}
{[%emt 00:00:55]} 50. d6+ {[%clk 00:27:59]} {[%emt 00:00:31]} Kb7 {[%clk
00:00:50]} {[%emt 00:00:32]} 51. e7 {[%clk 00:28:06]} {[%emt 00:00:23]} Kc8
{[%clk 00:00:48]} {[%emt 00:00:33]} 52. e8=Q+ {[%clk 00:28:08]} {[%emt
00:00:27]} Kd7 {[%emt 00:01:24]} 1-0

[Event "Masters Tournament (MTO)"]
[Site "Biel, Switzerland"]
[Date "2026.07.23"]
[Round "10.35"]
[White "Di Candia, Roberto"]
[Black "Jelicic, Hugo"]
[Result "0-1"]
[TimeControl "100+30+30sec/move"]
[WhiteTitle "-"]
[BlackTitle "-"]
[WhiteFideId "856649"]
[BlackFideId "1349040"]
[WhiteElo "1988"]
[BlackElo "1907"]

1. c4 {[%clk 01:40:59]} {[%emt 01:39:22]} e6 {[%clk 01:40:53]} {[%emt
00:00:07]} 2. Nf3 {[%clk 01:41:24]} {[%emt 00:00:03]} d5 {[%clk 01:41:17]}
{[%emt 00:00:06]} 3. g3 {[%clk 01:41:47]} {[%emt 00:00:07]} Nf6 {[%clk
01:41:23]} {[%emt 00:00:25]} 4. Bg2 {[%clk 01:42:11]} {[%emt 00:00:05]} d4
{[%clk 01:40:23]} {[%emt 00:01:30]} 5. a3 {[%clk 01:35:10]} {[%emt 00:07:31]}
c5 {[%clk 01:37:04]} {[%emt 00:03:49]} 6. b4 {[%clk 01:34:24]} {[%emt
00:01:16]} Bd6 {[%clk 01:27:29]} {[%emt 00:10:05]} 7. O-O {[%clk 01:31:43]}
{[%emt 00:03:09]} O-O {[%clk 01:27:38]} {[%emt 00:00:23]} 8. e3 {[%clk
01:25:36]} {[%emt 00:06:37]} Nc6 {[%clk 01:18:31]} {[%emt 00:09:37]} 9. b5
{[%clk 01:22:19]} {[%emt 00:03:47]} Ne7 {[%clk 01:14:53]} {[%emt 00:04:08]} 10.
exd4 {[%clk 01:17:20]} {[%emt 00:05:29]} cxd4 {[%clk 01:15:05]} {[%emt
00:00:18]} 11. Bb2 {[%clk 01:17:07]} {[%emt 00:00:43]} e5 {[%clk 01:04:05]}
{[%emt 00:11:30]} 12. d3 {[%clk 01:17:31]} {[%emt 00:00:06]} Ng6 {[%clk
01:03:06]} {[%emt 00:01:30]} 13. Nbd2 {[%clk 01:17:16]} {[%emt 00:00:45]} Bf5
{[%clk 00:57:57]} {[%emt 00:05:38]} 14. Nb3 {[%clk 01:13:37]} {[%emt 00:04:10]}
Rc8 {[%clk 00:50:57]} {[%emt 00:07:29]} 15. Re1 {[%clk 00:57:05]} {[%emt
00:17:02]} Re8 {[%clk 00:47:22]} {[%emt 00:04:06]} 16. Rc1 {[%clk 00:56:17]}
{[%emt 00:01:16]} Nd7 {[%clk 00:47:33]} {[%emt 00:00:20]} 17. Nfxd4 {[%clk
00:48:57]} {[%emt 00:07:51]} exd4 {[%clk 00:46:53]} {[%emt 00:01:09]} 18. Rxe8+
{[%clk 00:49:21]} {[%emt 00:00:05]} Qxe8 {[%clk 00:47:18]} {[%emt 00:00:06]} 19.
Nxd4 {[%clk 00:49:43]} {[%emt 00:00:08]} Be5 {[%clk 00:26:52]} {[%emt
00:20:57]} 20. Bxb7 {[%clk 00:40:42]} {[%emt 00:09:30]} Bxd4 {[%clk 00:26:32]}
{[%emt 00:00:51]} 21. Bxd4 {[%clk 00:40:27]} {[%emt 00:00:44]} Rc7 {[%clk
00:26:51]} {[%emt 00:00:12]} 22. Bc6 {[%clk 00:33:20]} {[%emt 00:07:37]} Qe7
{[%clk 00:17:55]} {[%emt 00:09:26]} 23. f4 {[%clk 00:26:25]} {[%emt 00:07:25]}
Nc5 {[%clk 00:05:07]} {[%emt 00:13:17]} 24. Rc3 {[%clk 00:22:58]} {[%emt
00:03:57]} Ne6 {[%clk 00:01:00]} {[%emt 00:04:38]} 25. Bf2 {[%clk 00:22:40]}
{[%emt 00:00:47]} Nexf4 {[%clk 00:00:52]} {[%emt 00:00:38]} 26. gxf4 {[%clk
00:15:33]} {[%emt 00:07:37]} Nxf4 {[%clk 00:01:21]} {[%emt 00:00:01]} 27. Kh1
{[%clk 00:16:02]} Qf6 {[%clk 00:00:53]} {[%emt 00:00:59]} 28. Qf3 {[%clk
00:13:33]} {[%emt 00:02:59]} Nh3 {[%clk 00:00:38]} {[%emt 00:00:44]} 29. Rc2
{[%clk 00:12:23]} {[%emt 00:01:40]} Re7 {[%clk 00:01:08]} 30. d4 {[%clk
00:06:13]} {[%emt 00:06:40]} Qg5 {[%clk 00:00:48]} {[%emt 00:00:49]} 31. Ra2
{[%clk 00:02:02]} {[%emt 00:04:41]} Re1+ {[%clk 00:01:00]} {[%emt 00:00:18]} 32.
Re2 {[%clk 00:00:55]} {[%emt 00:00:24]} 0-1

[Event "Masters Tournament (MTO)"]
[Site "Biel, Switzerland"]
[Date "2026.07.23"]
[Round "10.36"]
[White "Celis, Joel"]
[Black "Corbat, Philippe"]
[Result "1-0"]
[TimeControl "100+30+30sec/move"]
[WhiteTitle "-"]
[BlackTitle "-"]
[WhiteFideId "15400212"]
[BlackFideId "1304496"]
[WhiteElo "1981"]
[BlackElo "1893"]

1. e4 {[%clk 01:40:55]} {[%emt 00:00:02]} d5 {[%clk 01:40:04]} {[%emt
00:00:57]} 2. exd5 {[%clk 01:39:58]} {[%emt 00:01:27]} Nf6 {[%clk 01:40:00]}
{[%emt 00:00:34]} 3. d4 {[%clk 01:40:11]} {[%emt 00:00:18]} Bg4 {[%clk
01:39:45]} {[%emt 00:00:45]} 4. Nf3 {[%clk 01:35:36]} {[%emt 00:05:05]} Qxd5
{[%clk 01:38:55]} {[%emt 00:01:20]} 5. Nc3 {[%clk 01:30:40]} {[%emt 00:05:26]}
Qh5 {[%clk 01:35:35]} {[%emt 00:03:49]} 6. Be2 {[%clk 01:28:23]} {[%emt
00:02:47]} Nc6 {[%clk 01:35:14]} {[%emt 00:00:51]} 7. h3 {[%clk 01:21:59]}
{[%emt 00:06:54]} O-O-O {[%clk 01:32:39]} {[%emt 00:03:05]} 8. Be3 {[%clk
01:12:52]} {[%emt 00:09:37]} e5 {[%clk 01:27:37]} {[%emt 00:05:32]} 9. Rg1
{[%clk 01:04:33]} {[%emt 00:08:49]} exd4 {[%clk 01:08:09]} {[%emt 00:19:59]} 10.
hxg4 {[%clk 00:52:25]} {[%emt 00:12:38]} Qa5 {[%clk 01:00:01]} {[%emt
00:08:37]} 11. Nxd4 {[%clk 00:43:34]} {[%emt 00:09:21]} Nxd4 {[%clk 00:59:32]}
{[%emt 00:00:59]} 12. Bd3 {[%clk 00:37:52]} {[%emt 00:06:12]} Nc6 {[%clk
00:51:48]} {[%emt 00:08:13]} 13. a3 {[%clk 00:26:47]} {[%emt 00:11:36]} Ne4
{[%clk 00:45:29]} {[%emt 00:06:48]} 14. Qf3 {[%clk 00:16:13]} {[%emt 00:11:05]}
Nxc3 {[%clk 00:44:15]} {[%emt 00:01:45]} 15. Qf5+ {[%clk 00:15:43]} {[%emt
00:00:59]} Qxf5 {[%clk 00:44:02]} {[%emt 00:00:42]} 16. Bxf5+ {[%clk 00:16:07]}
{[%emt 00:00:07]} Kb8 {[%clk 00:44:21]} {[%emt 00:00:11]} 17. bxc3 {[%clk
00:16:24]} {[%emt 00:00:14]} g6 {[%clk 00:42:11]} {[%emt 00:02:39]} 18. Be4
{[%clk 00:15:54]} {[%emt 00:01:00]} Bg7 {[%clk 00:37:35]} {[%emt 00:05:06]} 19.
Rb1 {[%clk 00:13:59]} {[%emt 00:02:25]} Bxc3+ {[%clk 00:33:20]} {[%emt
00:04:45]} 20. Ke2 {[%clk 00:14:17]} {[%emt 00:00:13]} Na5 {[%clk 00:26:35]}
{[%emt 00:07:15]} 21. Rh1 {[%clk 00:14:28]} {[%emt 00:00:18]} Rde8 {[%clk
00:21:16]} {[%emt 00:05:49]} 22. Kf3 {[%clk 00:13:36]} {[%emt 00:01:22]} c6
{[%clk 00:16:57]} {[%emt 00:04:49]} 23. Bd3 {[%clk 00:12:08]} {[%emt 00:01:59]}
Kc7 {[%clk 00:14:37]} {[%emt 00:02:49]} 24. Bxa7 {[%clk 00:11:12]} {[%emt
00:01:27]} b5 {[%clk 00:13:33]} {[%emt 00:01:33]} 25. Be3 {[%clk 00:09:40]}
{[%emt 00:02:01]} Nb7 {[%clk 00:11:46]} {[%emt 00:02:18]} 26. g3 {[%clk
00:08:01]} {[%emt 00:02:10]} Be5 {[%clk 00:10:23]} {[%emt 00:01:52]} 27. Rb4
{[%clk 00:06:05]} {[%emt 00:02:26]} Bd6 {[%clk 00:08:49]} {[%emt 00:02:04]} 28.
Bf4 {[%clk 00:06:11]} {[%emt 00:00:24]} Ra8 {[%clk 00:08:57]} {[%emt 00:00:22]}
29. Re4 {[%clk 00:03:23]} {[%emt 00:03:18]} Bxf4 {[%clk 00:06:59]} {[%emt
00:02:28]} 30. Kxf4 {[%clk 00:02:36]} {[%emt 00:01:17]} Rad8 {[%clk 00:03:38]}
{[%emt 00:03:52]} 31. Rhe1 {[%clk 00:00:35]} {[%emt 00:02:30]} Nd6 {[%clk
00:02:53]} {[%emt 00:01:16]} 32. Re7+ {[%clk 00:00:53]} {[%emt 00:00:12]} Rd7
{[%clk 00:03:17]} {[%emt 00:00:06]} 33. Kg5 {[%clk 00:00:52]} {[%emt 00:00:28]}
Kd8 {[%clk 00:01:41]} {[%emt 00:02:09]} 34. Rxd7+ {[%clk 00:00:44]} {[%emt
00:00:38]} Kxd7 {[%clk 00:02:09]} {[%emt 00:00:02]} 35. Kf6 {[%clk 00:00:52]}
{[%emt 00:00:21]} Ra8 {[%clk 00:01:22]} {[%emt 00:01:18]} 36. Re3 {[%clk
00:00:46]} {[%emt 00:00:35]} Ra4 {[%clk 00:01:08]} {[%emt 00:00:45]} 37. f4
{[%clk 00:00:54]} {[%emt 00:00:21]} c5 {[%clk 00:00:58]} {[%emt 00:00:40]} 38.
Be2 {[%clk 00:00:36]} {[%emt 00:00:49]} Rd4 {[%clk 00:00:43]} {[%emt 00:00:45]}
39. Bf3 {[%clk 00:00:35]} {[%emt 00:00:31]} Rd2 {[%clk 00:00:47]} {[%emt
00:00:26]} 40. Re7+ {[%clk 00:00:46]} {[%emt 00:00:19]} Kd8 {[%clk 00:00:56]}
{[%emt 00:00:19]} 41. Re2 {[%clk 00:19:08]} {[%emt 00:11:49]} Rd4 {[%clk
00:23:38]} {[%emt 00:08:07]} 42. Re5 {[%clk 00:12:00]} {[%emt 00:07:39]} Ra4
{[%clk 00:10:31]} {[%emt 00:13:37]} 43. Rd5 {[%clk 00:06:41]} {[%emt 00:05:49]}
Ra6 {[%clk 00:08:33]} {[%emt 00:02:29]} 44. Ke5 {[%clk 00:05:50]} {[%emt
00:01:21]} Ke7 {[%clk 00:07:03]} {[%emt 00:01:59]} 45. Rxc5 {[%clk 00:04:54]}
{[%emt 00:01:26]} Nc4+ {[%clk 00:06:01]} {[%emt 00:01:32]} 46. Kd4 {[%clk
00:05:02]} {[%emt 00:00:19]} Nd2 {[%clk 00:04:39]} {[%emt 00:01:54]} 47. Bd5
{[%clk 00:02:36]} {[%emt 00:02:57]} Rxa3 {[%clk 00:04:21]} {[%emt 00:00:48]} 48.
c3 {[%clk 00:00:45]} {[%emt 00:02:22]} Nf1 {[%clk 00:03:47]} {[%emt 00:01:03]}
49. Rxb5 {[%clk 00:00:50]} {[%emt 00:00:25]} Nxg3 {[%clk 00:03:56]} {[%emt
00:00:21]} 50. Rb7+ {[%clk 00:01:01]} {[%emt 00:00:19]} Kd6 {[%clk 00:03:00]}
{[%emt 00:01:26]} 51. Rb6+ {[%clk 00:00:45]} {[%emt 00:00:46]} Kc7 {[%clk
00:03:13]} {[%emt 00:00:17]} 52. Rb7+ {[%clk 00:00:49]} {[%emt 00:00:26]} Kd6
{[%clk 00:03:39]} {[%emt 00:00:04]} 53. Rb6+ {[%clk 00:01:14]} {[%emt
00:00:05]} Kc7 {[%clk 00:04:06]} {[%emt 00:00:03]} 54. Rf6 {[%clk 00:01:04]}
{[%emt 00:00:40]} h5 {[%clk 00:03:13]} {[%emt 00:01:23]} 55. Rxf7+ {[%clk
00:01:14]} {[%emt 00:00:21]} Kd6 {[%clk 00:03:01]} {[%emt 00:00:42]} 56. Rf6+
{[%clk 00:01:37]} {[%emt 00:00:06]} Ke7 {[%clk 00:03:27]} {[%emt 00:00:04]} 57.
Re6+ {[%clk 00:01:49]} {[%emt 00:00:18]} Kd7 {[%clk 00:03:37]} {[%emt
00:00:20]} 58. c4 {[%clk 00:00:42]} {[%emt 00:01:38]} hxg4 {[%clk 00:02:36]}
{[%emt 00:01:30]} 59. Rxg6 {[%clk 00:00:50]} {[%emt 00:00:23]} Ne2+ {[%clk
00:02:15]} {[%emt 00:00:50]} 60. Ke5 {[%clk 00:00:40]} {[%emt 00:00:40]} g3
{[%clk 00:01:45]} {[%emt 00:01:00]} 61. Rg7+ {[%clk 00:00:59]} {[%emt
00:00:11]} Ke8 {[%clk 00:01:47]} {[%emt 00:00:27]} 62. f5 {[%clk 00:00:56]}
{[%emt 00:00:34]} Re3+ {[%clk 00:01:05]} {[%emt 00:01:13]} 63. Kd6 {[%clk
00:00:59]} {[%emt 00:00:26]} 1-0